[Event "Romanian Championship 2024"]
[Site "Eforie Nord"]
[Date "2024.02.26"]
[Round "3.9"]
[White "Armenciu, Bogdan-Ovidiu"]
[Black "Secheres, Adrian-Simion"]
[Result "1-0"]
[ECO "C55"]
[WhiteElo "1936"]
[BlackElo "2371"]
[Annotator "TA"]
[PlyCount "115"]
[EventDate "2024.02.24"]
[EventType "swiss"]
[EventCountry "ROU"]
[SourceTitle "playchess.com"]
[Source "ChessBase"]
[SourceQuality "1"]
[TimeControl "40/5400+30:900+30"]

{[%evp 11,115,21,22,16,27,24,39,21,33,16,20,16,37,37,36,16,33,34,24,0,0,3,14,5,2,9,13,13,12,10,23,13,39,37,49,40,56,55,54,67,62,56,65,27,27,-4,-2,-2,-6,-22,-11,-12,-23,-102,-99,-102,-93,-100,-75,-175,-167,-152,-130,-158,-142,-146,-152,-246,-183,-395,-418,-421,-370,-357,-348,-350,-201,-164,8,8,8,8,15,23,8,8,1536,1360,1569,1369,1764,1767,6390,29941,29939,6414,29984,29985,29985,29986,29986,29987,29987,29988,29994,29995]} 1. e4 {[%emt 0:00:04]} e5 {[%emt 0:00:22]} 2. Nf3 {[%emt 0:00:08]} Nc6 {[%emt 0:00:29]} 3. Bc4 {[%emt 0:00:16]} Nf6 {[%emt 0:00:30]} 4. d3 {[%emt 0:00:21]} Be7 {[%emt 0:00:35]} 5. Nc3 {[%emt 0:01:05]} O-O {[%emt 0:01:07]} 6. O-O {[%emt 0:00:50]} d6 {[%emt 0:00:33]} 7. a4 {[%emt 0:01:25]} a5 {[%emt 0:04:23]} 8. h3 {[%emt 0:08:49]} h6 {[%emt 0:01:18]} 9. Nd5 {[%emt 0:13:04] Weiß steht etwas besser.} Re8 {[%emt 0:08:10]} 10. Re1 {[%emt 0:04:21]} Bf8 {[%emt 0:05:04]} 11. c3 {[%emt 0:04:28]} Be6 {[%emt 0:06:16]} 12. Qb3 {[%emt 0:15:40]} Rb8 {[%emt 0:03:36]} 13. Be3 {[%emt 0:06:19]} Bxd5 {[%emt 0:08:17]} 14. exd5 {[%emt 0:04:11]} Ne7 {[%emt 0:00:07]} 15. Ba7 {[%emt 0:11:32]} Ra8 {[%emt 0:00:58]} 16. Qxb7 {[%emt 0:02:41]} Qc8 {[%emt 0:01:16]} 17. Qxc8 {[%emt 0:00:51]} Rexc8 {[%emt 0:00:06]} 18. Be3 {[%emt 0:00:19]} Nexd5 {[%emt 0:00:26]} 19. Bd2 {[%emt 0:06:58]} Nb6 {[%emt 0:02:38]} 20. Bb3 {[%emt 0:00:20][%cal Bc4b3,Bb3c2,Bc2d3][%mdl 32]} Re8 {[%emt 0:02:41]} 21. Bc2 {[%emt 0:00:30]} Nbd7 {[%emt 0:08:39]} 22. b4 {[%emt 0:01:36]} d5 {[%emt 0:01:56]} 23. b5 {[%emt 0:01:22]} Bd6 {[%emt 0:02:02][%cal Bf8d6,Bd6c5,Bc5b6][%mdl 32]} 24. Nh4 {[%emt 0:02:18]} e4 {[%emt 0:12:14]} 25. Nf5 {[%emt 0:01:01]} exd3 {[%emt 0:03:18]} 26. Bxd3 {[%emt 0:03:16]} Bc5 {[%emt 0:07:42]} 27. Bf4 {[%emt 0:01:40] Weiß steht aktiver.} Bb6 $1 {[%emt 0:00:11]} 28. Ne7+ {[%emt 0:01:05]} Kf8 {[%emt 0:00:15]} 29. Nc6 {[%emt 0:00:05]} Nc5 {[%emt 0:01:07][%cal Bd7c5,Bc5e4,Be4c3][%mdl 32]} 30. Bc2 {[%emt 0:03:13]} Nce4 {[%emt 0:01:00]} 31. Be3 {[%emt 0:01:43]} Nxc3 {[%emt 0:00:55]} 32. Bxb6 {[%emt 0:01:07]} (32. Rac1 $11) 32... cxb6 $17 {[%emt 0:00:06]} 33. f3 {[%emt 0:00:22]} Nd7 {[%emt 0:05:26]} 34. Kf2 {[%emt 0:00:47]} Nc5 {[%emt 0:01:13][%cal Od5d4]} 35. Ra3 {[%emt 0:00:23]} (35. Rxe8+ $17 {war einen Versuch wert.} Rxe8 36. Nd4) 35... Rxe1 $19 {[%emt 0:00:41]} 36. Kxe1 {[%emt 0:00:01]} Re8+ {[%emt 0:00:10]} 37. Kd2 {[%emt 0:00:24] [#]} Ne2 {[%emt 0:00:38] Hervorragende Reitkunst.} 38. Re3 {[%emt 0:01:05]} Nf4 {[%emt 0:00:52]} 39. Rxe8+ {[%emt 0:00:32]} Kxe8 $17 {[%emt 0:00:06][%mdl 4096] Endspiel. KBN-KNN} 40. Ke3 $2 {[%emt 0:00:00]} (40. g3 Nh5 (40... Nxh3 $2 41. Na7 $19) 41. g4) 40... Nxg2+ $19 {[%emt 0:00:00]} 41. Kd4 {[%emt 0:00:21]} Nf4 {[%emt 0:04:37]} 42. Ke5 {[%emt 0:01:13]} Nce6 {[%emt 0:03:43][%cal Oe8d7]} 43. Kd6 {[%emt 0:01:16]} d4 {[%emt 0:02:55]} (43... Nxh3 $142 44. Ne5 Nhf4) 44. Ne5 {[%emt 0:01:03]} d3 $2 {[%emt 0:09:33]} (44... Nxh3 $19 {Droht ...Nhf4 und aus.} 45. Kc6 Nhf4 (45... f6 46. Nd3 $15) 46. Kxb6 h5 (46... f6 47. Nd3 $15) 47. Kxa5 h4) 45. Bxd3 $11 {[%emt 0:01:25]} f6 {[%emt 0:02:44]} 46. Nd7 {[%emt 0:04:53]} Nxd3 {[%emt 0:04:31]} 47. Kxe6 {[%emt 0:00:06] KN-KN} Nf4+ {[%emt 0:00:39]} 48. Kd6 {[%emt 0:00:11]} Nxh3 $2 {[%emt 0:00:38][%mdl 8192] Danach kann Schwarz die Partie nicht mehr halten.} (48... Nd5 $11) 49. Nxb6 $18 {[%emt 0:00:06]} Ng5 {[%emt 0:00:24]} 50. Nc4 {[%emt 0:03:48]} Kd8 {[%emt 0:01:45]} 51. Nxa5 {[%emt 0:00:21] [#] Schwarz muss nun Nc6+ beachten.} h5 {[%emt 0:00:52][%cal Bh6h5,Bh5h4][%mdl 32]} 52. b6 {[%emt 0:06:21]} Nf7+ {[%emt 0:00:05]} 53. Kc5 {[%emt 0:01:14] Weiss droht Nc6+ und Matt.} h4 {[%emt 0:00:33]} 54. Nc6+ {[%emt 0:00:52] Weiß setzt Matt.} Kc8 {[%emt 0:00:05]} 55. a5 {[%emt 0:01:17][%cal Ba4a5,Ba5a6][%mdl 32]} Kb7 {[%emt 0:00:35]} 56. Nb4 {[%emt 0:00:17]} Nd8 {[%emt 0:01:36]} 57. a6+ {[%emt 0:00:16]} Ka8 {[%emt 0:00:18]} 58. Kd6 {[%emt 0:02:12] Gewichteter Fehlerwert: Weiß=0.16 (sehr präzise) /Schwarz=0.31.  Verlustzug:     	---       	Schwarz=1     Gewinn verpasst:   	---       	Schwarz=1     Fehler:       	Weiß=3     	Schwarz=1     Ungenau:       	Weiß=2     	Schwarz=1     OK:         	Weiß=19    	Schwarz=18    Bester:       	Weiß=4     	Schwarz=5     Stark:        	---       	Schwarz=1} 1-0

[Event "Romanian Championship 2024"]
[Site "Eforie Nord"]
[Date "2024.02.26"]
[Round "3.10"]
[White "Coicev, Matei-Andrei"]
[Black "David, Alexandru-Vasile"]
[Result "1/2-1/2"]
[ECO "B30"]
[WhiteElo "2122"]
[BlackElo "2360"]
[Annotator "TA"]
[PlyCount "75"]
[EventDate "2024.02.24"]
[EventType "swiss"]
[EventCountry "ROU"]
[SourceTitle "playchess.com"]
[Source "ChessBase"]
[SourceQuality "1"]
[TimeControl "40/5400+30:900+30"]

{[%evp 11,75,25,32,27,32,27,29,29,27,22,31,25,41,32,37,21,30,7,35,2,9,0,21,0,0,-18,-3,0,0,0,-43,0,0,0,0,0,0,0,18,0,0,0,0,0,0,0,0,0,0,0,0,0,0,0,0,-30,-24,-21,0,0,0,0,0,0,0,0]} 1. e4 {[%emt 0:00:09]} c5 {[%emt 0:00:12]} 2. Nf3 {[%emt 0:00:22]} Nc6 {[%emt 0:00:10]} 3. Bb5 {[%emt 0:00:25]} e6 {[%emt 0:00:15]} 4. O-O {[%emt 0:00:28]} Nge7 {[%emt 0:00:09]} 5. d4 {[%emt 0:00:39]} cxd4 {[%emt 0:00:11]} 6. Nxd4 {[%emt 0:00:11]} Qb6 {[%emt 0:01:21]} 7. Nxc6 {[%emt 0:00:21]} bxc6 {[%emt 0:00:08]} 8. Be2 {[%emt 0:01:10]} Ng6 {[%emt 0:00:47]} 9. c4 {[%emt 0:01:01] White has an edge.} Be7 {[%emt 0:03:04]} 10. Nc3 {[%emt 0:01:21]} c5 {[%emt 0:00:55]} 11. Rb1 {[%emt 0:05:16]} O-O {[%emt 0:00:32]} 12. Be3 {[%emt 0:01:07]} Qc7 {[%emt 0:02:01]} 13. Qd2 {[%emt 0:05:48]} d6 {[%emt 0:04:16]} 14. Rfd1 {[%emt 0:02:22]} Bb7 {[%emt 0:05:01]} 15. f3 {[%emt 0:02:15]} Rfd8 {[%emt 0:03:20]} 16. Qe1 {[%emt 0:04:14]} Bf6 {[%emt 0:01:14]} 17. Rbc1 {[%emt 0:06:22]} Qe7 {[%emt 0:05:32]} 18. Qf2 {[%emt 0:02:08]} Ne5 {[%emt 0:01:00]} 19. f4 {[%emt 0:05:42]} Ng6 {[%emt 0:12:16]} 20. e5 {[%emt 0:04:38]} dxe5 {[%emt 0:00:35] [#] Threatens to win with ...Bh4.} 21. Bxc5 {[%emt 0:01:01]} Qe8 {[%emt 0:03:10]} 22. fxe5 $1 {[%emt 0:05:04]} Bxe5 {[%emt 0:01:52]} 23. Bf3 {[%emt 0:05:35]} Rxd1+ {[%emt 0:07:26]} 24. Rxd1 {[%emt 0:01:11]} Qc8 {[%emt 0:02:54]} 25. Bxb7 {[%emt 0:03:20]} Qxb7 {[%emt 0:00:06]} 26. Bd4 {[%emt 0:04:37]} Qc7 {[%emt 0:07:41]} 27. Bxe5 {[%emt 0:12:24]} Nxe5 {[%emt 0:01:48]} 28. Qf4 {[%emt 0:01:42] Repels Ng4} Qb6+ {[%emt 0:00:25]} 29. Kh1 {[%emt 0:00:42]} f6 {[%emt 0:00:14]} 30. b3 {[%emt 0:01:03]} Rd8 {[%emt 0:00:10]} 31. Rxd8+ {[%emt 0:01:31]} Qxd8 $11 {[%emt 0:00:06][%mdl 4096] Endgame. KQN-KQN} 32. h3 {[%emt 0:03:01]} Qd3 {[%emt 0:00:35]} 33. Qc1 {[%emt 0:01:23]} h5 {[%emt 0:04:30]} 34. Qe1 {[%emt 0:01:04]} Qd4 {[%emt 0:06:35] The position is equal.} 35. Nb5 {[%emt 0:01:13]} Qb2 {[%emt 0:00:06]} 36. Qd1 {[%emt 0:01:49]} Qxa2 {[%emt 0:01:30]} 37. Qxh5 {[%emt 0:00:16]} Qxb3 {[%emt 0:00:39]} 38. Qe8+ {[%emt 0:00:06] Weighted Error Value: White=0.06 (flawless) /Black=0.05 (flawless) .  Inaccurate:     	White=3     	Black=1      OK:         	White=8     	Black=13     Best:        	White=3     	Black=1      Strong:       	White=1     	---} 1/2-1/2

[Event "Romanian Championship 2024"]
[Site "Eforie Nord"]
[Date "2024.02.26"]
[Round "3.11"]
[White "Cosma, Ioan"]
[Black "Craciun, Sasha-Matei"]
[Result "1-0"]
[ECO "D56"]
[WhiteElo "2316"]
[BlackElo "2080"]
[Annotator "TA"]
[PlyCount "119"]
[EventDate "2024.02.24"]
[EventType "swiss"]
[EventCountry "ROU"]
[SourceTitle "playchess.com"]
[Source "ChessBase"]
[SourceQuality "1"]
[TimeControl "40/5400+30:900+30"]

{[%evp 13,119,17,29,0,8,-29,26,-42,-37,-31,-5,0,0,0,0,0,0,0,0,0,0,0,5,8,7,0,0,0,0,0,15,-3,15,0,27,22,26,19,33,37,47,42,65,68,143,51,76,83,84,83,75,84,83,58,220,102,233,122,260,80,80,80,94,94,87,87,110,128,408,414,413,418,344,344,1177,1149,2799,2799,29961,29962,29961,29956,29968,29972,29968,29974,29972,29975,29975,29977,29977,29978,29978,29979,29979,29980,29980,29981,29982,29983,29983,29982,29982,29983,29983,29984,29984,29985]} 1. c4 {[%emt 0:00:14]} e6 {[%emt 0:00:05]} 2. Nc3 {[%emt 0:00:14]} d5 {[%emt 0:00:10]} 3. d4 {[%emt 0:00:10]} Be7 {[%emt 0:00:50]} 4. Nf3 {[%emt 0:03:57]} Nf6 {[%emt 0:00:18]} 5. Bg5 {[%emt 0:00:27]} h6 {[%emt 0:00:09]} 6. Bh4 {[%emt 0:00:59]} Nbd7 {[%emt 0:00:33]} 7. e3 {[%emt 0:01:01]} O-O {[%emt 0:00:12]} 8. c5 {[%emt 0:09:09]} c6 {[%emt 0:04:56]} 9. b4 {[%emt 0:05:27]} b6 {[%emt 0:03:50]} (9... a5 $142 10. b5 e5) 10. Qa4 {[%emt 0:00:32]} (10. Bd3 $11) 10... Bb7 {[%emt 0:06:14]} 11. Ba6 $1 {[%emt 0:03:09]} Qc8 {[%emt 0:11:33]} 12. Bxb7 {[%emt 0:00:30]} Qxb7 {[%emt 0:00:19]} 13. Rb1 $1 {[%emt 0:04:38]} b5 {[%emt 0:12:15]} 14. Qc2 {[%emt 0:02:41]} a5 {[%emt 0:02:50]} 15. a3 {[%emt 0:02:45]} axb4 {[%emt 0:05:17]} 16. axb4 {[%emt 0:00:08]} Rfe8 {[%emt 0:02:49]} 17. O-O {[%emt 0:00:43]} Bd8 {[%emt 0:01:32]} 18. Ra1 {[%emt 0:11:09]} Bc7 {[%emt 0:06:13]} 19. Bg3 {[%emt 0:05:45]} Bxg3 {[%emt 0:01:49]} 20. hxg3 {[%emt 0:00:06]} Rxa1 {[%emt 0:01:23]} 21. Rxa1 {[%emt 0:00:07]} Ra8 {[%emt 0:00:04]} 22. Qb2 {[%emt 0:03:29]} Ra6 {[%emt 0:02:39]} 23. Nd2 {[%emt 0:04:59][%cal Bf3d2,Bd2b3,Bb3c1][%mdl 32]} Nb8 {[%emt 0:04:51]} 24. Nb3 {[%emt 0:04:58]} Rxa1+ {[%emt 0:00:36]} 25. Qxa1 {[%emt 0:00:05]} Na6 {[%emt 0:01:28]} 26. Qa5 {[%emt 0:01:27] aiming for Qd8+.} Kh7 {[%emt 0:01:58]} 27. Nc1 {[%emt 0:03:35]} Nc7 {[%emt 0:05:52]} 28. Nd3 {[%emt 0:02:49]} Ng4 {[%emt 0:02:48] [#]} ({Black should try} 28... Nfe8 $14) 29. Ne2 {[%emt 0:05:48]} ({Much less strong is} 29. Qb6 $6 Qa8 30. Qa5 (30. Qxc7 $2 Qa1+) 30... Qc8 $14) ({Better is} 29. Nd1 $1 $16) 29... h5 {[%emt 0:04:10]} 30. Ne5 {[%emt 0:03:52]} Na6 {[%emt 0:06:56]} 31. Nf4 {[%emt 0:02:30]} Nxe5 {[%emt 0:04:17]} 32. dxe5 $16 {[%emt 0:00:06][%mdl 4096] Endgame. KQN-KQN} g6 {[%emt 0:02:38]} 33. Ne2 {[%emt 0:01:11]} Nb8 $2 {[%emt 0:00:34]} (33... Kg7 $14) 34. Nd4 {[%emt 0:00:44]} (34. Qd8 $18 {Strongly threatening Qf8.} Kg7 35. Nd4) 34... Kg7 {[%emt 0:00:10]} (34... Nd7 $16) 35. f4 {[%emt 0:03:32]} (35. Qd8 $18) 35... Kf8 {[%emt 0:02:08]} (35... Qc8 $16 {was called for.}) 36. Kh2 $2 {[%emt 0:04:45]} (36. Qd8+ $18 {is the precise move to win.} Kg7 37. Nf3) 36... Ke7 {[%emt 0:01:39]} 37. Kh3 {[%emt 0:01:07]} Kd7 {[%emt 0:00:54]} 38. g4 {[%emt 0:00:43] White has more active pieces.} hxg4+ {[%emt 0:00:56]} 39. Kxg4 {[%emt 0:00:06]} Qa6 {[%emt 0:00:06] [#]} 40. Qb6 $1 {[%emt 0:00:00]} Qxb6 {[%emt 0:00:00][%mdl 8192]} (40... Qc8 $16 41. Qa7+ Qc7) 41. cxb6 {[%emt 0:05:28] And now Kg5 would win. KN-KN} Na6 {[%emt 0:01:39]} 42. Kg5 {[%emt 0:02:17]} Nxb4 {[%emt 0:00:04]} 43. Kf6 {[%emt 0:00:29]} Na6 $2 {[%emt 0:04:18]} (43... c5 44. Nxb5 Kc6) 44. Kxf7 $18 {[%emt 0:00:58]} b4 {[%emt 0:00:03]} 45. g4 {[%emt 0:04:37]} ({Less strong is} 45. Kxg6 c5 46. Ne2 b3 $16) 45... Nc5 {[%emt 0:04:23]} 46. f5 {[%emt 0:01:21] White mates.} exf5 {[%emt 0:00:42]} 47. gxf5 {[%emt 0:02:58]} (47. Kxg6 $2 {too greedy.} fxg4 $19) 47... gxf5 {[%emt 0:00:06][%cal Bg6f5,Bf5f4][%mdl 32]} 48. e6+ {[%emt 0:00:08]} Nxe6 {[%emt 0:00:04]} 49. Nxe6 {[%emt 0:00:04] KN-KP} Kc8 {[%emt 0:00:16]} 50. Nc5 {[%emt 0:00:32]} d4 {[%emt 0:01:54]} 51. exd4 {[%emt 0:02:20] KN-K3P} f4 {[%emt 0:00:01]} 52. Ke6 {[%emt 0:00:58]} b3 {[%emt 0:01:42]} 53. Nxb3 {[%emt 0:00:24] KN-KPP} Kb7 {[%emt 0:00:07]} 54. Nd2 {[%emt 0:01:12]} Kxb6 {[%emt 0:00:07]} 55. Ke5 {[%emt 0:00:08]} Kb5 {[%emt 0:01:32]} 56. Kxf4 {[%emt 0:00:19]} Kb4 {[%emt 0:00:00]} 57. Ne4 {[%emt 0:00:19]} Kc4 {[%emt 0:00:10]} 58. Ke5 {[%emt 0:00:08]} Kd3 {[%emt 0:00:07]} 59. Nc5+ {[%emt 0:00:26]} Kc4 {[%emt 0:00:07]} 60. Ne6 {[%emt 0:00:13] Weighted Error Value: White=0.16 (very precise) /Black=0.37.  Loses game:     	---       	Black=2      Missed win:     	White=1     	---        Mistake:       	White=4     	Black=5      Inaccurate:     	White=1     	Black=3      OK:         	White=11    	Black=5      Best:        	White=3     	Black=5      Strong:       	White=3     	---} 1-0

[Event "Romanian Championship 2024"]
[Site "Eforie Nord"]
[Date "2024.02.26"]
[Round "3.12"]
[White "Ciorgovean, Iustin"]
[Black "Radu, David Cr."]
[Result "0-1"]
[ECO "A79"]
[WhiteElo "2310"]
[BlackElo "2142"]
[Annotator "TA"]
[PlyCount "140"]
[EventDate "2024.02.24"]
[EventType "swiss"]
[EventCountry "ROU"]
[SourceTitle "playchess.com"]
[Source "ChessBase"]
[SourceQuality "1"]
[TimeControl "40/5400+30:900+30"]

{[%evp 28,140,55,30,54,49,41,39,38,0,0,0,0,0,64,0,40,11,66,60,57,60,52,56,49,64,55,70,74,72,79,77,88,64,53,37,35,41,102,97,93,93,114,25,25,30,34,0,0,0,0,-122,-111,-125,-130,-136,-164,-154,-154,-148,-152,-321,-200,-206,-200,-285,-85,-90,-85,-330,-330,-330,-330,-323,-323,-316,-316,-29949,-29952,-12016,-11305,-29970,-29972,-29973,-29974,-29975,-29976,-29976,-29977,-29977,-29977,-29977,-29978,-29978,-29979,-29979,-29979,-29979,-29979,-29982,-29981,-29981,-29982,-29984,-29985,-29986,-29984,-29984,-29984,-29984,-29984,-29984,-29985,-29986,-29987]} 1. d4 {[%emt 0:00:01]} Nf6 {[%emt 0:00:27]} 2. c4 {[%emt 0:00:03]} c5 {[%emt 0:00:08]} 3. d5 {[%emt 0:00:05]} e6 {[%emt 0:00:06]} 4. Nc3 {[%emt 0:00:06]} exd5 {[%emt 0:00:06]} 5. cxd5 {[%emt 0:00:04]} d6 {[%emt 0:00:07]} 6. Nf3 {[%emt 0:00:12]} g6 {[%emt 0:00:34]} 7. Nd2 {[%emt 0:00:03]} Bg7 {[%emt 0:00:18]} 8. e4 {[%emt 0:00:05]} O-O {[%emt 0:00:47]} 9. Be2 {[%emt 0:00:02]} Na6 {[%emt 0:00:58]} 10. O-O {[%emt 0:00:11]} Nc7 {[%emt 0:00:56]} 11. a4 {[%emt 0:02:04]} Re8 {[%emt 0:01:27]} 12. f3 {[%emt 0:01:23]} b6 {[%emt 0:01:47]} 13. Nc4 {[%emt 0:03:47]} Ba6 {[%emt 0:02:06]} 14. Bg5 {[%emt 0:01:09]} Qd7 {[%emt 0:02:22]} 15. Rb1 {[%emt 0:21:51]} Bxc4 {[%emt 0:08:36]} 16. Bxc4 {[%emt 0:00:04]} a6 {[%emt 0:00:57]} 17. Qd2 {[%emt 0:07:02]} b5 {[%emt 0:03:32] Weiß steht etwas besser.} 18. axb5 {[%emt 0:00:58]} axb5 {[%emt 0:00:08]} 19. Be2 {[%emt 0:00:27]} c4 {[%emt 0:10:56]} 20. Kh1 {[%emt 0:06:12]} Rec8 {[%emt 0:10:42]} ({Viel schwächer wäre} 20... b4 $6 21. Nd1 $16) (20... Qe7 $11) 21. Rfc1 {[%emt 0:03:41]} ({Vorzuziehen ist} 21. b3 $14) 21... Rcb8 {[%emt 0:06:07]} 22. Bf1 {[%emt 0:06:03]} Qe8 {[%emt 0:03:43]} (22... Na6 $11) 23. Qf4 $14 {[%emt 0:10:46][%csl LRd6,LRf6]} Qe5 {[%emt 0:16:19]} 24. Qxe5 {[%emt 0:00:34]} dxe5 {[%emt 0:00:07]} 25. Nd1 {[%emt 0:05:25]} Nce8 {[%emt 0:02:24]} 26. b3 {[%emt 0:00:36]} cxb3 {[%emt 0:01:12]} 27. Rxb3 {[%emt 0:00:13]} Nd6 {[%emt 0:00:04]} 28. Rcb1 {[%emt 0:08:30][%cal Od1c3]} Nd7 {[%emt 0:10:11]} 29. Nc3 {[%emt 0:05:46][%cal Rc3b5]} (29. Bxb5 $2 {zu gefräßig.} Rxb5 30. Rxb5 Nxb5 31. Rxb5 Ra1 $19) 29... Bf8 {[%emt 0:03:50]} 30. Bxb5 {[%emt 0:04:53]} Nc5 {[%emt 0:00:32]} 31. R3b2 {[%emt 0:01:19]} Ra3 {[%emt 0:00:33]} 32. Bd2 {[%emt 0:02:50] Das Läuferpaar ist gut.} Rc8 {[%emt 0:02:16]} (32... f5 $14) 33. Bf1 $16 {[%emt 0:02:02]} f5 {[%emt 0:04:05]} 34. exf5 {[%emt 0:00:05]} gxf5 {[%emt 0:00:24]} 35. Rb8 {[%emt 0:03:47]} ({Günstiger ist} 35. Nb5 $16 Nxb5 36. Rxb5) 35... Rxb8 $11 {[%emt 0:01:08]} 36. Rxb8 {[%emt 0:00:01]} Kf7 {[%emt 0:00:02]} 37. Nb5 {[%emt 0:02:55]} Ra1 {[%emt 0:00:22]} 38. Kg1 {[%emt 0:00:54][%cal Ob8f8] Und jetzt Rxf8+! wäre schön.} Nc4 {[%emt 0:05:00]} 39. Bb4 {[%emt 0:02:25]} (39. Bc3 $11 Rc1 40. Kf2 Rc2+ 41. Kg1) 39... Nd7 $1 $17 {[%emt 0:00:33][%csl LRb4,LRb8]} 40. Rxf8+ {[%emt 0:00:00]} Nxf8 {[%emt 0:00:00]} 41. Nd6+ {[%emt 0:01:37]} Nxd6 {[%emt 0:00:30]} 42. Bxd6 {[%emt 0:00:04][%mdl 4096] Endspiel. KRN-KB} Ng6 {[%emt 0:02:11]} 43. Bc7 {[%emt 0:04:20]} Rc1 {[%emt 0:02:21]} 44. Bb8 {[%emt 0:01:27]} (44. d6 $17 {ist wohl besser.} Nf8 45. Kf2) 44... Kf6 {[%emt 0:01:15]} 45. g3 {[%emt 0:01:23]} Ne7 {[%emt 0:07:01]} 46. f4 {[%emt 0:05:19]} (46. d6 {war die einzige Verteidigung.} Nc6 47. Bc7) 46... Nxd5 $2 {[%emt 0:04:20]} (46... e4 $19 {ist viel giftiger.} 47. Be5+ Kf7) 47. Bxe5+ {[%emt 0:00:34]} Ke6 {[%emt 0:00:03] Schwarz steht aktiver.} 48. Kf2 {[%emt 0:01:14] [#] Pariert Ne3.} (48. Bd4 $17) 48... Ne3 $1 $19 {[%emt 0:00:18][%mdl 512]} 49. Bd3 {[%emt 0:02:57]} (49. Bb5 Ng4+) 49... Ng4+ {[%emt 0:00:52]} 50. Kg2 {[%emt 0:00:05]} Nxe5 {[%emt 0:00:41]} 51. fxe5 {[%emt 0:00:03]} Kxe5 {[%emt 0:00:20] KR-KB} 52. Kf3 $2 {[%emt 0:01:05] [#]} (52. Bb5 $19) 52... Rc3 {[%emt 0:01:41]} 53. Ke3 {[%emt 0:01:08]} Ra3 {[%emt 0:00:08] ...Rb3 ist eine echte Drohung.} 54. h3 {[%emt 0:01:24]} h6 {[%emt 0:00:55] Schwarz setzt Matt.} 55. h4 {[%emt 0:00:32]} h5 {[%emt 0:00:31]} 56. Ke2 {[%emt 0:00:51]} f4 {[%emt 0:00:26]} 57. gxf4+ {[%emt 0:00:27]} Kxf4 {[%emt 0:00:07]} 58. Bg6 {[%emt 0:00:08]} Kg4 {[%emt 0:00:52]} 59. Kf2 {[%emt 0:00:26]} Ra2+ {[%emt 0:00:38]} 60. Ke3 {[%emt 0:00:40]} Kxh4 {[%emt 0:00:11]} 61. Kf3 {[%emt 0:00:44]} Ra3+ {[%emt 0:00:59]} 62. Kf4 {[%emt 0:00:38]} Ra6 {[%emt 0:00:06]} 63. Bd3 {[%emt 0:00:46]} Rf6+ {[%emt 0:00:05]} 64. Ke5 {[%emt 0:00:10]} Rf8 {[%emt 0:00:13]} 65. Bg6 {[%emt 0:00:21]} Kg4 {[%emt 0:00:14]} 66. Ke4 {[%emt 0:00:09]} Rf6 {[%emt 0:01:02]} 67. Bh7 {[%emt 0:00:09]} Re6+ {[%emt 0:00:04]} 68. Kd5 {[%emt 0:00:33]} Re7 {[%emt 0:00:05]} 69. Bc2 {[%emt 0:00:26]} h4 {[%emt 0:00:05]} 70. Kd6 {[%emt 0:00:02]} Re1 {[%emt 0:00:08] Gewichteter Fehlerwert: Weiß=0.53/Schwarz=0.16 (sehr präzise) .  Verlustzug:     	Weiß=2     	---        Gewinn verpasst:   	---       	Schwarz=1     Fehler:       	Weiß=5     	Schwarz=3     Ungenau:       	Weiß=3     	Schwarz=2     OK:         	Weiß=14    	Schwarz=16    Bester:       	Weiß=2     	Schwarz=6     Brilliant:      	---       	Schwarz=1} 0-1